bitfinex/quotes_SOLUSD_20260309
["timestamp","ask_amount","ask_price","bid_price","bid_amount"]
[1773029241357,3.48443754,83.349,83.321,3.51398963]
[1773029242160,3.48443754,83.349,83.323,3.51398963]
[1773029243264,3.48443754,83.349,83.325,3.51398963]
[1773029243691,4.42408682,83.36,83.302,3.51398963]
[1773029243692,3.48443754,83.339,83.302,3.51398963]
[1773029244587,3.48443754,83.339,83.303,3.51398963]
[1773029245264,3.48443754,83.337,83.302,12.00451369]
[1773029246683,3.48443754,83.335,83.302,15.51850332]
[1773029247378,3.48443754,83.335,83.303,3.51398963]
[1773029247870,3.48443754,83.329,83.302,12.00451369]
[1773029248254,3.48443754,83.329,83.297,15.51910588]
[1773029248659,3.48443754,83.327,83.297,15.51910588]
[1773029248856,3.48443754,83.319,83.281,3.51398963]
[1773029249061,3.48443754,83.319,83.282,3.51398963]
[1773029250583,3.48443754,83.318,83.284,3.51398963]
[1773029251170,3.48443754,83.309,83.283,12.00725238]
[1773029251376,3.48443754,83.318,83.284,3.51398963]
[1773029252167,3.48443754,83.316,83.286,3.51398963]
[1773029253588,3.48443754,83.316,83.285,12.00696403]
[1773029254183,3.26299183,83.308,83.277,12.00799379]
[1773029254488,3.26299183,83.299,83.273,3.23148318]
[1773029254684,3.26299183,83.299,83.262,3.23148318]
[1773029255477,3.26299183,83.289,83.261,12.01042504]
[1773029255993,4.42408682,83.28,83.252,12.01172344]
[1773029256176,4.42408682,83.28,83.24,34.45738278]
[1773029256177,3.26299183,83.259,83.24,1e-08]
[1773029258872,12.01085781,83.258,83.24,1e-08]
[1773029259079,3.26299183,83.257,83.24,1e-08]
[1773029260169,4.42408682,83.28,83.241,3.23148318]
[1773029260389,16.4319044,83.28,83.241,3.23148318]
[1773029260585,4.42408682,83.29,83.251,3.23148318]
[1773029260781,12.00494603,83.299,83.261,3.23148318]
[1773029260985,4.42408682,83.29,83.261,3.23148318]
[1773029261495,42.01731112,83.299,83.261,3.23148318]
[1773029261699,4.42408682,83.29,83.261,3.23148318]
[1773029262076,3.26299183,83.289,83.261,3.23148318]
[1773029262692,3.26299183,83.288,83.263,3.23148318]
[1773029263572,4.42408682,83.29,83.263,3.23148318]
[1773029263774,3.26299183,83.294,83.263,3.23148318]
[1773029264783,4.42408682,83.29,83.265,3.23148318]
[1773029264984,7.68707865,83.29,83.265,3.23148318]
[1773029265376,0.759,83.3,83.264,12.00999231]
[1773029265377,0.759,83.3,83.281,3.23148318]
[1773029265683,47.94998795,83.421,83.282,3.23148318]
[1773029266002,3.26299183,83.329,83.291,3.23148318]
[1773029266172,3.26299183,83.329,83.264,42.03497309]
[1773029266173,3.26299183,83.319,83.284,3.23148318]
[1773029266378,3.26299183,83.309,83.271,3.23148318]
[1773029266781,3.26299183,83.307,83.273,3.23148318]
[1773029268176,3.26299183,83.307,83.272,12.0088385]
[1773029268177,4.42408682,83.3,83.27,4.42408682]
[1773029268481,3.26299183,83.289,83.265,3.23148318]
[1773029269087,3.26299183,83.287,83.265,3.23148318]
[1773029269396,3.26299183,83.287,83.265,12.00971144]
[1773029269699,3.26299183,83.291,83.266,3.23148318]
[1773029273517,3.26299183,83.279,83.252,12.01161995]
[1773029274007,3.26299183,83.279,83.253,3.23148318]
[1773029274408,3.26299183,83.286,83.253,3.23148318]
[1773029275010,3.26299183,83.308,83.281,3.23148318]
[1773029275209,4.42408682,83.29,83.261,3.23148318]
[1773029275409,3.26299183,83.287,83.253,3.23148318]
[1773029275615,3.26299183,83.279,83.253,3.23148318]
[1773029276308,12.00597089,83.292,83.261,3.23148318]
[1773029276494,3.26299183,83.291,83.261,3.23148318]
[1773029277806,3.26299183,83.289,83.263,3.23148318]
[1773029278410,3.26299183,83.289,83.262,12.0102808]
[1773029278411,3.26299183,83.289,83.257,12.01090311]
[1773029278807,3.26299183,83.279,83.257,12.01090311]
[1773029279196,3.26299183,83.279,83.251,12.01172886]
[1773029279404,3.26299183,83.289,83.252,3.23148318]
[1773029279794,3.26299183,83.289,83.251,12.01172886]
[1773029279795,3.26299183,83.289,83.263,3.23148318]
[1773029280410,12.00559966,83.295,83.263,3.23148318]
[1773029280611,3.26299183,83.294,83.263,3.23148318]
[1773029282308,3.26299183,83.289,83.263,3.23148318]
[1773029282913,3.26299183,83.289,83.262,12.0102808]
[1773029282914,3.52316472,83.279,83.25,12.01191292]
[1773029283608,3.52316472,83.279,83.25,15.48366465]
[1773029284523,3.52316472,83.279,83.251,3.47175173]
[1773029285199,12.00652932,83.289,83.251,3.47175173]
[1773029285511,3.52316472,83.288,83.251,3.47175173]
[1773029285899,3.52316472,83.293,83.261,3.47175173]
[1773029286510,3.52316472,83.289,83.251,3.47175173]
[1773029287909,3.52316472,83.287,83.252,3.47175173]
[1773029290201,3.5344891,83.285,83.254,3.32906138]
[1773029290401,3.5344891,83.279,83.254,3.32906138]
[1773029290601,12.00681987,83.286,83.254,3.32906138]
[1773029290926,3.5344891,83.285,83.254,3.32906138]
[1773029291218,3.5344891,83.279,83.253,12.01157916]
[1773029291514,3.5344891,83.279,83.249,12.0121305]
[1773029291715,3.5344891,83.279,83.249,15.34119188]
[1773029293014,3.5344891,83.277,83.25,3.32906138]
[1773029293192,4.42408682,83.28,83.25,3.32906138]
[1773029293392,3.5344891,83.285,83.251,3.32906138]
[1773029294821,3.5344891,83.285,83.253,3.32906138]
[1773029295500,12.0071082,83.284,83.253,3.32906138]
[1773029295700,3.5344891,83.283,83.253,3.32906138]
[1773029297017,3.5344891,83.279,83.254,15.34049626]
[1773029297324,3.5344891,83.279,83.254,3.32906138]
[1773029297817,3.5344891,83.279,83.254,12.01143488]
[1773029298624,3.5344891,83.279,83.248,3.32906138]
[1773029298625,3.5344891,83.279,83.249,12.01211675]
[1773029298919,3.5344891,83.279,83.25,3.32906138]
[1773029299122,3.5344891,83.277,83.25,3.32906138]
[1773029299721,3.5344891,83.277,83.252,3.32906138]
[1773029302217,3.5344891,83.275,83.253,12.01157916]
[1773029303122,3.5344891,83.275,83.253,15.34064054]
[1773029304627,3.5344891,83.275,83.242,3.32906138]
[1773029307126,3.5344891,83.275,83.251,3.32906138]
[1773029307807,3.5344891,83.273,83.251,3.32906138]
[1773029310523,0.28432314,83.299,83.24,1e-08]
[1773029310524,3.5344891,83.269,83.24,1e-08]
[1773029310713,3.5344891,83.259,83.23,0.2]
[1773029311327,3.5344891,83.249,83.23,0.2]
[1773029311629,3.5344891,83.249,83.218,12.01649188]
[1773029312616,3.5344891,83.247,83.215,3.32906138]
[1773029317828,3.3861442,83.239,83.207,3.29697716]
[1773029319037,3.3861442,83.237,83.209,3.29697716]
[1773029319826,3.3861442,83.237,83.21,12.01778632]
[1773029320033,3.3861442,83.237,83.211,3.29697716]
[1773029323541,3.3861442,83.235,83.206,3.29697716]
[1773029325846,3.3861442,83.229,83.201,15.31606346]
[1773029326027,3.3861442,83.229,83.202,3.29697716]
[1773029327057,3.3861442,83.227,83.203,12.01879739]
[1773029327439,3.3861442,83.227,83.204,3.29697716]
[1773029328128,3.3861442,83.227,83.2,0.2]
[1773029328847,3.3861442,83.219,83.2,0.2]
[1773029329236,3.3861442,83.217,83.2,0.2]
[1773029329644,4.4327649,83.21,83.19,0.2]
[1773029329948,3.3861442,83.209,83.19,0.2]
[1773029330253,42.05820855,83.218,83.18,0.2]
[1773029330254,3.3861442,83.199,83.18,0.2]
[1773029330434,3.3861442,83.205,83.182,3.29697716]
[1773029331132,12.01951969,83.198,83.18,0.2]
[1773029331453,3.3861442,83.197,83.18,0.2]
[1773029332855,3.3861442,83.197,83.181,3.29697716]
[1773029333234,12.01980864,83.196,83.18,0.2]
[1773029333435,3.3861442,83.195,83.18,0.2]
[1773029333752,12.01980864,83.196,83.18,0.2]
[1773029333753,15.40595284,83.196,83.18,3.49697716]
[1773029334253,3.3861442,83.195,83.18,0.2]
[1773029335338,3.3861442,83.214,83.182,3.29697716]
[1773029336245,3.3861442,83.209,83.182,3.29697716]
[1773029336939,3.3861442,83.209,83.184,3.29697716]
[1773029338663,3.3861442,83.207,83.184,3.29697716]
[1773029340157,3.3861442,83.205,83.184,3.29697716]
[1773029340450,3.3861442,83.225,83.191,3.29697716]
[1773029340961,3.3861442,83.219,83.191,3.29697716]
[1773029346656,3.35386949,83.217,83.191,3.29697716]
[1773029347034,3.35386949,83.217,83.192,12.02038657]
[1773029347241,3.35386949,83.217,83.193,3.35916704]
[1773029347846,3.35386949,83.217,83.187,12.0209915]
[1773029349260,3.21339869,83.215,83.187,3.24202498]
[1773029353768,3.21339869,83.215,83.189,3.24202498]
[1773029354554,12.0163701,83.22,83.191,3.24202498]
[1773029354879,12.01460976,83.232,83.201,3.24202498]
[1773029355770,12.01460976,83.232,83.202,12.01894185]
[1773029356070,3.21339869,83.229,83.203,3.24202498]
[1773029357166,3.21339869,83.227,83.203,3.24202498]
[1773029357366,3.21339869,83.232,83.205,3.24202498]
[1773029357869,3.21339869,83.229,83.205,3.24202498]
[1773029359869,12.01518719,83.228,83.205,3.24202498]
[1773029360070,15.22858588,83.228,83.205,3.24202498]
[1773029361345,3.21339869,83.227,83.205,3.24202498]
[1773029361550,12.01547593,83.226,83.205,3.24202498]
[1773029361770,15.22887462,83.226,83.205,3.24202498]
[1773029366373,3.21339869,83.225,83.205,3.24202498]
[1773029367968,12.01576468,83.224,83.205,3.24202498]
[1773029369171,3.21339869,83.209,83.183,3.24202498]
[1773029369378,3.21339869,83.209,83.184,15.26356758]
[1773029369674,3.21339869,83.209,83.171,9.90014286]
[1773029369675,3.21339869,83.189,83.171,9.90014286]
[1773029369978,3.21339869,83.187,83.171,9.90014286]
[1773029370758,3.21339869,83.185,83.171,9.90014286]
[1773029371162,3.21339869,83.196,83.173,3.24202498]
[1773029371476,12.01912064,83.201,83.173,3.24202498]
[1773029371673,4.43737021,83.21,83.181,3.24202498]
[1773029371875,12.01793075,83.209,83.181,3.24202498]
[1773029372368,3.21339869,83.208,83.181,3.24202498]
[1773029372973,3.21339869,83.208,83.171,9.90014286]
[1773029372974,3.19278228,83.199,83.174,3.2895793]
[1773029373977,3.19278228,83.199,83.161,30.06205728]
[1773029373978,3.19278228,83.179,83.158,3.2895793]
[1773029374169,3.19278228,83.179,83.15,7.72694951]
[1773029374378,3.19278228,83.177,83.16,4.63737021]
[1773029374587,3.19278228,83.177,83.161,12.02486742]
[1773029374881,3.19278228,83.177,83.16,0.2]
[1773029377363,4.43737021,83.2,83.16,0.2]
[1773029377364,3.19278228,83.188,83.161,12.02486742]
[1773029377576,3.19278228,83.199,83.171,3.2895793]
[1773029378470,15.21215751,83.199,83.171,3.2895793]
[1773029378767,12.01937523,83.199,83.171,3.2895793]
[1773029379083,12.01875475,83.204,83.181,3.2895793]
[1773029379381,3.19278228,83.203,83.181,3.2895793]
[1773029380565,3.19278228,83.208,83.181,3.2895793]
[1773029380882,3.19278228,83.208,83.176,12.02269885]
[1773029381079,3.19278228,83.208,83.176,15.31227815]
[1773029381474,3.19278228,83.208,83.177,3.2895793]
[1773029381475,12.01821962,83.207,83.177,3.2895793]
[1773029381782,3.19278228,83.206,83.177,3.2895793]
[1773029383263,3.19278228,83.199,83.172,3.2895793]
[1773029383663,3.19278228,83.197,83.173,12.0231325]
[1773029383977,3.19278228,83.197,83.174,3.2895793]
[1773029385157,3.19278228,83.197,83.168,12.02385532]
[1773029385362,3.19278228,83.197,83.169,3.2895793]
[1773029386475,0.28432314,83.219,83.16,4.63737021]
[1773029386476,3.19278228,83.214,83.181,3.2895793]
[1773029386682,3.19278228,83.209,83.174,3.2895793]
[1773029387765,12.01807518,83.208,83.175,12.0228434]
[1773029387967,3.19278228,83.207,83.176,3.2895793]
[1773029388366,3.19278228,83.207,83.181,3.2895793]
[1773029391577,3.19278228,83.205,83.181,3.2895793]
[1773029392284,3.19278228,83.205,83.183,3.2895793]
[1773029397691,3.13009928,83.205,83.183,3.2895793]
[1773029399498,12.01865294,83.204,83.183,3.2895793]
[1773029399700,3.19278228,83.203,83.183,3.2895793]
[1773029400795,3.19278228,83.203,83.185,3.2895793]
[1773029401603,3.19278228,83.199,83.168,3.2895793]
[1773029401796,3.19278228,83.179,83.16,0.2]
[1773029402284,3.19278228,83.189,83.161,3.2895793]
[1773029402598,12.02096456,83.188,83.163,3.2895793]
[1773029402797,3.19278228,83.187,83.163,3.2895793]
[1773029403001,3.19278228,83.187,83.16,0.2]
[1773029403180,3.19278228,83.187,83.16,3.41901028]
[1773029403502,3.19278228,83.187,83.162,3.21901028]
[1773029405011,3.20096264,83.185,83.162,3.21901028]
[1773029406997,3.20096264,83.185,83.161,12.02486742]
[1773029406998,3.20096264,83.185,83.163,15.24358851]
[1773029407202,3.20096264,83.185,83.164,3.21901028]
[1773029407402,0.28432314,83.21,83.171,3.21901028]
[1773029407403,3.20096264,83.2,83.171,3.21901028]
[1773029407798,7.63833285,83.2,83.171,3.21901028]
[1773029408000,3.20096264,83.199,83.171,3.21901028]
[1773029408401,3.20968096,83.189,83.171,3.21901028]
[1773029408602,3.20968096,83.189,83.164,3.39457195]
[1773029409309,3.20968096,83.189,83.166,3.39457195]
[1773029410083,3.20968096,83.188,83.166,3.39457195]
[1773029410393,3.20968096,83.188,83.161,3.39457195]
[1773029410704,15.22996095,83.193,83.162,3.39457195]
[1773029411011,3.20968096,83.192,83.162,3.39457195]
[1773029412209,3.20968096,83.189,83.164,3.39457195]
[1773029414810,3.20968096,83.189,83.166,3.39457195]
[1773029415215,12.02096456,83.188,83.166,3.39457195]
[1773029416098,3.20968096,83.189,83.166,3.39457195]
[1773029416305,3.20968096,83.187,83.166,3.39457195]
[1773029417610,3.20968096,83.192,83.168,3.39457195]
[1773029417814,12.01937523,83.199,83.171,3.39457195]
[1773029417994,3.20968096,83.198,83.171,3.39457195]
[1773029418815,12.01884827,83.203,83.181,3.39457195]
[1773029419698,3.20968096,83.212,83.191,3.39457195]
[1773029420618,3.20968096,83.199,83.162,3.39457195]
[1773029420795,3.20968096,83.189,83.162,3.39457195]
[1773029421313,3.20968096,83.199,83.171,3.39457195]
[1773029421516,12.01735305,83.213,83.181,3.39457195]
[1773029421701,12.01677541,83.217,83.183,3.39457195]
[1773029421902,15.22645637,83.217,83.183,3.39457195]
[1773029422220,3.20968096,83.216,83.183,3.39457195]
[1773029422699,3.20968096,83.214,83.185,3.39457195]
[1773029423608,3.20968096,83.214,83.191,3.39457195]
[1773029424608,3.20968096,83.212,83.185,3.39457195]
[1773029432018,4.7227805,83.24,83.187,3.39457195]
[1773029432019,12.01648661,83.219,83.187,3.39457195]
[1773029432209,12.01648661,83.219,83.186,12.02125357]
[1773029432210,12.01648661,83.219,83.201,3.39457195]
[1773029432615,3.20968096,83.223,83.201,3.39457195]
[1773029435326,12.0151958,83.228,83.203,3.15321463]
[1773029435711,15.206506,83.228,83.203,3.15321463]
[1773029435906,3.1913102,83.227,83.203,3.15321463]
[1773029436327,12.01547593,83.226,83.203,3.15321463]
[1773029436535,3.1913102,83.225,83.203,3.15321463]
[1773029437930,3.1913102,83.225,83.205,3.15321463]
[1773029439421,3.1913102,83.224,83.205,3.15321463]
[1773029440316,3.1913102,83.222,83.2,19.61084543]
[1773029440916,3.1913102,83.222,83.2,15.17238807]
[1773029441118,3.1913102,83.222,83.195,15.17310143]
[1773029441429,3.1913102,83.222,83.196,3.15321463]
[1773029442230,3.1913102,83.22,83.201,3.15321463]
[1773029442434,3.1913102,83.225,83.201,3.15321463]
[1773029442735,12.01552055,83.226,83.201,3.15321463]
[1773029444038,12.01552055,83.226,83.203,3.15321463]
[1773029444835,3.1913102,83.225,83.203,3.15321463]
[1773029447037,3.1913102,83.235,83.205,3.15321463]
[1773029450440,3.1913102,83.233,83.205,3.15321463]
[1773029450742,3.1913102,83.229,83.205,3.15321463]
[1773029451440,3.1913102,83.234,83.21,4.43845736]
[1773029451641,30.02908362,83.253,83.206,12.01836406]
[1773029451642,3.1913102,83.253,83.221,3.15321463]
[1773029454935,3.1913102,83.249,83.221,3.15321463]
[1773029455849,3.1913102,83.239,83.21,7.59167199]
[1773029456848,3.1913102,83.239,83.211,3.15321463]
[1773029457047,4.43845736,83.24,83.212,3.15321463]
[1773029457048,3.1913102,83.237,83.212,3.15321463]
[1773029458344,3.1913102,83.235,83.213,15.17056768]
[1773029459755,3.1913102,83.235,83.214,3.15321463]
[1773029459947,0.759,83.255,83.221,3.15321463]
[1773029460250,0.759,83.255,83.22,4.43845736]
[1773029460251,4.43845736,83.28,83.243,3.15321463]
[1773029460456,3.1913102,83.289,83.27,4.43845736]
[1773029460630,7.5035514,83.299,83.241,12.01323029]
[1773029460631,7.5035514,83.299,83.281,3.15321463]
[1773029460836,0.2,83.32,83.291,3.15321463]
[1773029461140,3.3913102,83.32,83.3,4.43845736]
[1773029461846,15.39326343,83.32,83.3,4.43845736]
[1773029462185,3.1913102,83.319,83.29,4.43845736]
[1773029462450,3.1913102,83.317,83.291,3.15321463]
[1773029464254,3.30507829,83.315,83.291,3.15321463]
[1773029465755,12.00278464,83.314,83.291,3.15321463]
[1773029466257,0.2,83.32,83.301,3.21624439]
[1773029466439,0.2,83.32,83.308,3.21624439]
[1773029467365,4.53845736,83.34,83.311,3.21624439]
[1773029467366,3.40507829,83.34,83.311,3.21624439]
[1773029467536,0.1,83.34,83.321,3.21624439]
[1773029467741,0.1,83.34,83.323,3.21624439]
[1773029468057,0.1,83.34,83.33,7.65470175]
[1773029468456,10.56462926,83.337,83.317,12.00224946]
[1773029468644,3.07081643,83.336,83.317,12.00224946]
[1773029469558,3.07081643,83.336,83.317,15.23297447]
[1773029470246,3.07081643,83.336,83.32,4.43845736]
[1773029470548,7.49381283,83.337,83.32,4.43845736]
[1773029470756,3.07081643,83.336,83.32,4.43845736]
[1773029471751,7.49381283,83.337,83.33,7.66918237]
[1773029472153,3.40964141,83.358,83.333,3.23072501]
[1773029472464,3.40964141,83.378,83.34,4.43845736]
[1773029473861,3.40964141,83.359,83.288,60.03207939]
[1773029474063,3.40964141,83.349,83.31,4.43845736]
[1773029474264,3.40964141,83.347,83.31,4.43845736]
[1773029475062,3.40964141,83.347,83.31,16.4417623]
[1773029475267,3.40964141,83.347,83.32,4.43845736]
[1773029476365,3.40964141,83.345,83.32,4.43845736]
[1773029477668,3.40964141,83.35,83.322,0.02579665]
[1773029477855,3.40964141,83.35,83.321,12.00177626]
[1773029479469,3.40964141,83.348,83.31,4.43845736]
[1773029479665,3.40964141,83.348,83.32,4.43845736]
[1773029480165,3.40964141,83.348,83.306,12.00393729]
[1773029480374,3.40964141,83.339,83.31,4.43845736]
[1773029480945,3.40964141,83.339,83.32,4.43845736]
[1773029481153,3.40964141,83.345,83.33,4.43845736]
[1773029481351,11.99709665,83.354,83.33,4.43845736]
[1773029481352,3.40964141,83.353,83.33,4.43845736]
[1773029481653,4.7227805,83.37,83.32,4.43845736]
[1773029481654,3.40964141,83.351,83.32,4.43845736]
[1773029481863,3.40964141,83.351,83.33,4.43845736]
[1773029482571,3.40964141,83.351,83.32,4.43845736]
[1773029482762,3.40964141,83.351,83.33,4.43845736]
[1773029483970,3.40964141,83.339,83.31,4.43845736]
[1773029484357,3.40964141,83.339,83.3,4.43845736]
[1773029485656,3.40964141,83.337,83.3,4.4265254]
[1773029486574,41.99764812,83.338,83.3,4.4265254]
[1773029486575,3.40964141,83.329,83.3,4.4265254]
[1773029487770,12.00076804,83.328,83.3,4.4265254]
[1773029487951,3.40964141,83.327,83.3,4.4265254]
[1773029490382,0.28432314,83.336,83.3,4.4265254]
[1773029490383,3.40964141,83.325,83.3,4.4265254]
[1773029490774,3.40964141,83.325,83.298,12.00503761]
[1773029493679,3.40964141,83.319,83.28,4.4265254]
[1773029494069,3.40964141,83.309,83.28,4.4265254]
[1773029494562,3.40964141,83.309,83.274,30.02107445]
[1773029494869,3.40964141,83.299,83.275,12.00840588]
[1773029495682,3.40964141,83.299,83.271,12.00894588]
[1773029497167,3.40964141,83.297,83.274,12.00855008]
[1773029497368,3.40964141,83.309,83.28,4.4265254]
[1773029497585,3.40964141,83.309,83.275,0.09997976]
[1773029497887,3.40964141,83.315,83.29,4.4265254]
[1773029498184,3.40964141,83.299,83.245,0.10327235]
[1773029498364,4.71084854,83.32,83.251,0.10327235]
[1773029498365,3.40964141,83.279,83.251,0.10327235]
[1773029498565,3.40964141,83.294,83.261,0.10327235]
[1773029499984,3.40964141,83.289,83.26,16.43697554]
[1773029500285,3.40964141,83.289,83.26,12.01045014]
[1773029500486,3.40964141,83.289,83.254,12.12113912]
[1773029500982,3.40964141,83.289,83.261,0.11297295]
[1773029501165,15.41545222,83.293,83.261,0.11297295]
[1773029501362,3.40964141,83.292,83.261,0.11297295]
[1773029503384,3.40964141,83.292,83.262,0.11923524]
[1773029503987,15.4157405,83.291,83.262,0.11923524]
[1773029504185,3.40964141,83.29,83.262,0.11923524]
[1773029504684,3.40964141,83.279,83.25,4.4265254]
[1773029505670,3.40964141,83.269,83.241,12.01331074]
[1773029505869,3.40964141,83.269,83.242,0.12831526]
[1773029507396,3.40964141,83.269,83.236,12.01388861]
[1773029507687,0.28432314,83.29,83.221,30.04037264]
[1773029507688,3.40964141,83.259,83.231,12.01475411]
[1773029508494,3.40964141,83.249,83.212,0.13424631]
[1773029508694,0.28432314,83.27,83.2,0.2]
[1773029508695,3.40964141,83.269,83.231,0.13720745]
[1773029508893,3.40964141,83.268,83.231,0.13720745]
[1773029509275,3.40964141,83.259,83.231,0.13720745]
[1773029509680,3.40964141,83.257,83.231,12.15196156]
[1773029510390,3.40964141,83.257,83.232,0.14008711]
[1773029510795,3.40964141,83.257,83.231,42.0516394]
[1773029511401,3.40964141,83.257,83.231,12.01475411]
[1773029511892,3.40964141,83.257,83.228,0.14293464]
[1773029512205,3.40964141,83.255,83.225,12.0156203]
[1773029513397,3.40964141,83.249,83.225,12.0156203]
[1773029514789,3.40964141,83.247,83.224,15.64611705]
[1773029514998,3.40964141,83.247,83.225,0.15395663]
[1773029516078,4.4265254,83.26,83.225,0.15395663]
[1773029516284,3.40964141,83.253,83.225,0.15395663]
[1773029520296,4.4265254,83.25,83.224,27.66187227]
[1773029520598,3.40964141,83.239,83.224,0.27809457]
[1773029520782,12.01169616,83.253,83.21,12.01770717]
[1773029520783,3.28338984,83.229,83.21,12.01770717]
[1773029520978,4.4265254,83.24,83.211,3.27421173]
[1773029521184,3.28338984,83.242,83.212,12.01749747]
[1773029521378,15.29670058,83.241,83.213,3.27421173]
[1773029521579,7.70991524,83.24,83.213,3.27421173]
[1773029521779,3.28338984,83.239,83.213,3.27421173]
[1773029522080,3.28338984,83.239,83.208,3.27421173]
[1773029522894,3.26097543,83.229,83.2,3.614798]
[1773029523474,3.26097543,83.229,83.201,12.0190863]
[1773029523886,3.26097543,83.219,83.2,0.2]
[1773029524086,4.4265254,83.22,83.171,3.414798]
[1773029524087,3.26097543,83.209,83.171,3.414798]
[1773029524295,3.26097543,83.199,83.173,3.414798]
[1773029524592,4.4265254,83.21,83.173,3.414798]
[1773029525097,12.01793075,83.209,83.175,3.414798]
[1773029525600,4.4265254,83.2,83.175,3.414798]
[1773029526082,4.4265254,83.2,83.17,12.02356534]
[1773029526482,3.14533885,83.199,83.17,15.43836334]
[1773029527211,12.01951969,83.198,83.17,15.43836334]
[1773029527503,12.01951969,83.198,83.162,3.414798]
[1773029527504,3.15542154,83.189,83.162,3.414798]
[1773029528782,3.15542154,83.189,83.16,0.2]
[1773029528783,3.15542154,83.189,83.164,3.45418025]
[1773029529184,12.02096456,83.188,83.164,3.45418025]
[1773029530107,3.19461359,83.209,83.171,3.45418025]
[1773029530284,4.4265254,83.2,83.171,3.45418025]
[1773029533404,4.4265254,83.2,83.163,42.08602382]
[1773029533405,7.64925173,83.2,83.173,3.45418025]
[1773029536488,4.4265254,83.21,83.18,4.4265254]
[1773029536693,4.4265254,83.21,83.181,3.45418025]
[1773029537010,3.22292344,83.209,83.181,3.45418025]
[1773029537596,15.23957985,83.218,83.181,3.45418025]
[1773029537795,12.01665641,83.218,83.181,3.45418025]
[1773029537997,3.22292344,83.199,83.173,3.45418025]
[1773029538199,3.22292344,83.199,83.174,12.02298795]
[1773029538391,3.22292344,83.199,83.174,15.4771682]
[1773029538593,12.01951969,83.198,83.175,3.45418025]
[1773029538806,15.24244313,83.198,83.175,3.45418025]
[1773029539511,3.22292344,83.197,83.175,3.45418025]
[1773029539713,3.22292344,83.197,83.169,3.45418025]
[1773029540310,7.64944884,83.18,83.16,0.2]
[1773029540535,3.22292344,83.179,83.16,0.2]
[1773029540812,4.4265254,83.2,83.155,11.66055364]
[1773029540813,3.22292344,83.169,83.155,11.66055364]
[1773029540991,4.4265254,83.18,83.151,3.45418025]
[1773029541194,12.02109197,83.188,83.151,3.45418025]
[1773029542318,12.02109197,83.188,83.122,0.28432314]
[1773029542319,42.07350337,83.188,83.12,0.2]
[1773029542622,4.4265254,83.14,83.12,12.23078858]
[1773029542996,4.4265254,83.14,83.12,0.2]
[1773029543395,4.4265254,83.14,83.124,3.45418025]
[1773029543594,4.4265254,83.15,83.13,3.55418025]
[1773029543823,4.4265254,83.15,83.12,16.65731479]
[1773029543824,3.22292344,83.139,83.12,0.2]
[1773029544009,3.22292344,83.129,83.11,0.1]
[1773029544619,48.05936369,83.231,83.11,0.1]
[1773029544620,4.4265254,83.17,83.122,12.03050937]
[1773029544796,0.28432314,83.179,83.151,3.45418025]
[1773029544797,12.02228555,83.179,83.151,3.45418025]
[1773029545213,12.02211066,83.181,83.151,3.45418025]
[1773029545527,4.4265254,83.18,83.151,3.45418025]
[1773029545696,3.22292344,83.179,83.151,3.45418025]
[1773029546213,12.02211066,83.181,83.151,3.45418025]
[1773029546420,4.44267398,83.18,83.151,3.45418025]
[1773029546614,12.02211066,83.181,83.152,3.45418025]
[1773029546920,3.22292344,83.159,83.05,0.1]
[1773029547222,4.44267398,83.13,83.096,12.03416951]
[1773029547398,3.22292344,83.129,83.096,12.03416951]
[1773029547599,3.22292344,83.129,83.1,12.13358402]
[1773029548112,3.22292344,83.129,83.1,0.1]
[1773029548419,3.22292344,83.144,83.111,12.03210164]
[1773029548713,16.46924507,83.15,83.112,3.45418025]
[1773029548924,3.22292344,83.149,83.112,3.45418025]
[1773029549116,16.46924507,83.15,83.121,3.45418025]
[1773029549318,4.44267398,83.15,83.121,3.45418025]
[1773029549502,12.02575499,83.155,83.121,3.45418025]
[1773029549810,12.02327706,83.172,83.141,3.45418025]
[1773029549994,15.2462005,83.172,83.141,3.45418025]
[1773029550194,3.22292344,83.171,83.141,3.45418025]
[1773029550391,11.9074473,83.17,83.141,3.45418025]
[1773029550614,12.02226523,83.179,83.143,3.45418025]
[1773029550908,15.24518867,83.179,83.143,3.45418025]
[1773029551115,3.69383402,83.195,83.142,12.0276154]
[1773029551116,11.9074473,83.2,83.17,11.30617744]
[1773029551291,3.22292344,83.213,83.181,3.45418025]
[1773029551496,3.22292344,83.213,83.19,15.36162755]
[1773029551911,3.22292344,83.213,83.19,3.45418025]
[1773029552118,3.22292344,83.209,83.181,3.45418025]
[1773029552713,12.01807518,83.208,83.181,3.45418025]
[1773029553516,15.6398354,83.208,83.181,3.45418025]
[1773029553711,12.01836406,83.206,83.181,3.45418025]
[1773029553913,3.62176022,83.205,83.18,11.9074473]
[1773029554111,3.62176022,83.205,83.152,0.28432314]
[1773029554112,3.62176022,83.199,83.17,11.9074473]
[1773029554512,3.62176022,83.199,83.17,15.39672658]
[1773029554700,42.06427421,83.206,83.172,3.48927928]
[1773029555203,45.68603443,83.206,83.172,3.48927928]
[1773029555619,12.01836406,83.206,83.181,3.48927928]
[1773029556102,3.62176022,83.205,83.18,11.9074473]